Cogmind - Beta 11.1 @@@ ROGUE MODE // 2022.12.09 @ 20:00:04 Player: Horse Result: Destroyed by L-31 Rogue with Katana Performance ------------- Evolutions (2) 1000 Regions Visited (4) 800 Robots Destroyed (108) 540 Value Destroyed (2773) 2773 Prototype IDs (8) 160 Alien Tech Used (0) 0 Bonus (72) 72 TOTAL SCORE: 5345 Bonus ------- High Alert Combat Kills 72 Cogmind --------- Core Integrity 0/550 Matter 278/300 Energy 160/160 System Corruption 0% Temperature Warm (109) Movement Walking (190) Ox1 Location -8/Materials Parts ------- > --- POWER (1) -------- Light Nuclear Core > --- PROPULSION (2) --- Carbon-fiber Leg Carbon-fiber Leg > --- UTILITY (5) ------ Improved Heat Sink Medium Storage Unit Improved Signal Interpreter Hardened Medium Armor Plating Medium Reactive Plating > --- WEAPON (3) ------- (None) > --- INVENTORY (10) --- Weight Redist. System Improved Sensor Array Improved Terrain Scanner Terrain Scan Processor Armor Integrity Analyzer Core Shielding Utility Shielding Dynamic Insulation System Heavy Laser Power Maul Peak State ------------ > --- POWER ------------ Light Nuclear Core > --- PROPULSION ------- Carbon-fiber Leg Carbon-fiber Leg > --- UTILITY ---------- Improved Heat Sink Medium Storage Unit Improved Signal Interpreter Hardened Medium Armor Plating Medium Reactive Plating > --- WEAPON ----------- Heavy Laser Heavy Laser Heavy Laser > --- INVENTORY -------- Weight Redist. System Improved Sensor Array Improved Terrain Scanner Terrain Scan Processor Armor Integrity Analyzer Core Shielding Utility Shielding Dynamic Insulation System Heavy Laser Power Maul [Rating: 37] Favorites ----------- Power Light Ion Engine Engine Light Ion Engine Power Core Light Nuclear Core Propulsion Aluminum Leg Leg Aluminum Leg Wheel Wheel Utility Medium Storage Unit Device Improved Heat Sink Storage Medium Storage Unit Processor Targeting Computer Protection Core Shielding Weapon Assault Rifle Energy Gun Heavy Laser Energy Cannon Beam Cannon Ballistic Gun Assault Rifle Ballistic Cannon Assault Cannon Launcher Missile Launcher Special Weapon Mining Laser Impact Weapon Power Maul Slashing Weapon Blade Saw Build | -11 -10 -10 -9 -8 ------- Run | Scr Mat Min Mat Mat Slots Evolved 4 | . . . 2 2 Power . | . . . . . Propulsion . | . . . . . Utility 3 | . . . 2 1 Weapon 1 | . . . . 1 Parts Attached 126 | 7 6 9 24 80 Power 12 | 1 1 1 2 7 Engine 8 | 1 1 . 2 4 Core 4 | . . 1 . 3 Reactor . | . . . . . Propulsion 22 | 2 1 5 2 12 Treads . | . . . . . Leg 11 | 2 1 1 . 7 Wheel 11 | . . 4 2 5 Hover . | . . . . . Flight . | . . . . . Utility 41 | 2 2 . 6 31 Device 13 | 1 . . 1 11 Storage 4 | 1 1 . . 2 Processor 8 | . 1 . 1 6 Hackware . | . . . . . Protection 16 | . . . 4 12 Artifact . | . . . . . Weapon 51 | 2 2 3 14 30 Energy Gun 17 | . . . 2 15 Energy Cannon 4 | . 1 1 2 . Ballistic Gun 7 | 2 . 1 2 2 Ballistic Cannon 5 | . . . . 5 Launcher 12 | . 1 1 5 5 Special Weapon 3 | . . . 3 . Impact Weapon 1 | . . . . 1 Slashing Weapon 2 | . . . . 2 Piercing Weapon . | . . . . . Special Melee Weapon . | . . . . . Unidentified Prototypes 2 | . . . 1 1 Parts Lost 32 | . . 1 6 25 Power 7 | . . 1 2 4 Propulsion 4 | . . . 1 3 Utility 7 | . . . 1 6 Weapon 14 | . . . 2 12 Highest Loss Streak 9 | . . 1 2 9 To Critical Strikes . | . . . . . Average Slot Usage (%) 95 | . 100 99 96 92 Engine 7 | . 14 5 5 5 Core 3 | . . 8 5 2 Leg 12 | . 28 5 . 11 Wheel 9 | . . 22 20 6 Device 6 | . 3 . 1 11 Storage 10 | . 14 14 11 6 Processor 11 | . 10 14 21 8 Protection 8 | . . . 8 15 Energy Gun 8 | . . . 3 16 Energy Cannon 3 | . 2 14 5 . Ballistic Gun 10 | . 25 14 6 2 Ballistic Cannon 1 | . . . . 3 Launcher 1 | . . . 5 1 Naked Turns . | . . . . . Heaviest Build 49 | 13 18 21 26 49 Greatest Support 33 | 20 20 20 32 33 Greatest Overweight (x) 2 | . . 1 1 2 Average Overweight (x) . | . . . . . Largest Inventory Capacity 10 | 8 10 10 10 10 Average Capacity 9 | 7 9 10 10 8 Most Carried 10 | 4 10 10 10 10 Average Carried 8 | 2 8 9 8 8 Final Capacity 10 | 8 10 10 10 10 Final Carried 10 | 4 10 10 9 10 Class Distribution -------------------- 55% | Mutant 20% | Tank 13% | Scavenger-Mutant 9% | Gunner Dominant Class ---------------- Mutant | -10/Materials Mutant | -10/Mines Scavenger-Mutant | -9/Materials Tank | -8/Materials Resources | -11 -10 -10 -9 -8 ----------- Run | Scr Mat Min Mat Mat Matter Collected 2586 | 342 291 321 389 1243 Remotely . | . . . . . Salvage Created 3439 | 84 400 251 939 1765 Parts 214 | 4 41 20 62 87 Haulers Intercepted 7 | . 1 . 2 4 Recyclers Shooed 5 | 1 1 . . 3 Parts Field Recycled . | . . . . . Retrieved Matter . | . . . . . Parts Self-Destructed . | . . . . . Prevented . | . . . . . Kills | -11 -10 -10 -9 -8 ------- Run | Scr Mat Min Mat Mat Combat Hostiles Destroyed 72 | . 11 7 21 33 Melee 3 | . . . . 3 Guns 43 | . 11 2 11 19 Cannons 14 | . . 3 4 7 AOE 10 | . . 2 6 2 Classes Destroyed 16 | 2 5 . 4 5 Worker 2 | . . . . 2 Builder 7 | . . . 3 4 Tunneler 5 | 2 1 2 . . Hauler 7 | . 1 . 2 4 Recycler 7 | 1 . . 1 5 Mechanic 1 | . 1 . . . Operator 1 | . . . 1 . Watcher 6 | . 3 . 1 2 Swarmer 22 | . 9 3 4 6 Grunt 31 | . 2 4 11 14 Brawler 1 | . . . . 1 Duelist 2 | . . . 1 1 Sentry 10 | . . . 5 5 Specialist 4 | . . . . 4 Hunter 1 | . . . . 1 Heavy 1 | . . . . 1 Best Kill Streak 9 | 2 4 4 9 8 Combat Bots Only 7 | . 3 3 7 5 Max Kills in Single Turn 2 | 1 1 2 2 2 Gunslinging 1 | . . . . 1 Exploded 2 | . . 2 2 1 Melee 1 | . . . . 1 Uniques/NPCs Destroyed . | . . . . . Combat | -11 -10 -10 -9 -8 -------- Run | Scr Mat Min Mat Mat Damage Taken 5405 | . 199 268 911 4027 Core 909 | . 71 33 229 576 Absorbed by Shields . | . . . . . Redirected to Shielding 330 | . . . 28 302 Regen/Repaired (Parts) 37 | . . . . 37 Core Remaining (%) 66 | 100 . 58 42 . Volleys Fired 255 | 12 50 22 77 94 Largest 3 | 2 2 2 2 3 Hottest 240 | 40 80 80 108 240 Shots Fired 503 | 24 99 43 118 219 Gun 346 | 24 89 21 62 150 Cannon 126 | . 9 21 36 60 Launcher 23 | . 1 1 12 9 Special 8 | . . . 8 . Kinetic 245 | 24 89 21 34 77 Thermal 198 | . 9 21 44 124 Explosive 23 | . 1 1 12 9 Electromagnetic 37 | . . . 28 9 Robot Hit Streak 27 | 5 10 8 27 13 Robot Miss Streak 7 | 2 3 2 3 7 Penetration Max 1 | . . . . 1 Secondary Targets 6 | . 1 . . 5 Max Gunslinging Chain 1 | . 1 . . 1 Shots Hit Robots 337 | 13 63 26 81 154 Core Hits 162 | 3 22 13 37 87 Critical Kills 1 | . . . 1 . Critical Parts Destroyed . | . . . . . Critical Strikes 12 | . . . 2 10 Burn 5 | . . . . 5 Destroy 1 | . . . 1 . Blast 5 | . . . . 5 Corrupt 1 | . . . 1 . Melee Attacks 9 | . . . . 9 Impact 1 | . . . . 1 Slashing 8 | . . . . 8 Piercing . | . . . . . Sneak Attacks . | . . . . . Combat Hostiles . | . . . . . Follow-up Attacks . | . . . . . Damage Inflicted 8265 | 179 859 531 2078 4618 Guns 3643 | 179 702 180 658 1924 Cannons 2645 | . 123 232 646 1644 Explosions 1839 | . 34 119 774 912 Melee 118 | . . . . 118 Ramming 20 | . . . . 20 Kinetic 3253 | 179 702 180 413 1779 Thermal 2833 | . 123 232 646 1832 Explosive 1706 | . 34 119 774 779 Electromagnetic 335 | . . . 245 90 Impact . | . . . . . Slashing 118 | . . . . 118 Piercing . | . . . . . Highest Corruption 1 | . 1 1 . . Average Corruption 1 | . 1 1 . . Corruption Purged . | . . . . . Corruption Blocked . | . . . . . Effects 9 | . 7 2 . . Message Errors 3 | . 2 1 . . Matter Fused 2 | . 1 1 . . Heat Flow Errors 1 | . 1 . . . Energy Discharges 2 | . 2 . . . Data Loss (minor) 1 | . 1 . . . Overload Shots . | . . . . . Overflow Damage 178 | . . . 38 140 Projectiles 104 | . . . . 104 Explosions 74 | . . . 38 36 Melee . | . . . . . Knockbacks 11 | . . . . 11 Impact . | . . . . . Kinetic 10 | . . . . 10 Secondary 1 | . . . . 1 Self-Inflicted Damage 200 | . . 23 128 49 Shots 9 | . . 1 6 2 Rammed . | . . . . . Targets Rammed 6 | . . . . 6 Kicked 6 | . . . . 6 Crushed . | . . . . . Highest Temperature 350 | . 134 134 350 337 Average Temperature 85 | . 49 52 92 92 Received Heat Transfer 1866 | . 36 108 354 1368 Effects 6 | . . . 2 4 Energy Bleed 3 | . . . 1 2 Interference 2 | . . . . 2 Matter Decay 1 | . . . 1 . Siege Activations . | . . . . . Robots Corrupted . | . . . . . Combat Hostiles . | . . . . . Parts Fried 1 | . . . 1 . Impact Corruptions . | . . . . . Robots Melted 2 | . . . . 2 Combat Hostiles 2 | . . . . 2 Parts Melted 12 | . . 1 1 10 Heat Transferred 5745 | . 259 481 1073 3932 Parts Sabotaged . | . . . . . Parts Stolen . | . . . . . Parts Stripped . | . . . . . Power Chain Reactions 2 | . . . . 2 Missiles Intercepted . | . . . . . Alert | -11 -10 -10 -9 -8 ------- Run | Scr Mat Min Mat Mat Peak Influence 596 | 15 252 280 418 596 Initial 176 | . 9 59 31 176 Average 218 | 5 147 178 143 300 Maximum Alert Level 2 | . 1 1 2 2 Low Security (%) 44 | 100 73 60 78 11 Level 1 45 | . 26 39 12 69 Level 2 10 | . . . 9 18 Level 3 . | . . . . . Level 4 . | . . . . . Level 5 . | . . . . . High Security . | . . . . . Max Security . | . . . . . Squads Dispatched 15 | . 1 . 3 11 Investigation 4 | . . . 1 3 Extermination . | . . . . . Reinforcement 10 | . 1 . 2 7 Assault 1 | . . . . 1 Garrison . | . . . . . Intercept . | . . . . . Searches Triggered . | . . . . . Construction Impeded 1 | . . . 1 . Haulers Reinforced . | . . . . . Active Scanning Responses . | . . . . . Cargo Convoy Interrupts . | . . . . . Stealth | -11 -10 -10 -9 -8 --------- Run | Scr Mat Min Mat Mat Distress Signals 4 | . 1 . 2 1 Communications Jammed . | . . . . . Distress Signals . | . . . . . Times Spotted 125 | . 24 8 29 64 Peak Tracking Total 7 | . 4 3 7 7 Tactical Retreats 7 | . . . 1 6 Traps | -11 -10 -10 -9 -8 ------- Run | Scr Mat Min Mat Mat Traps Triggered 1 | . 1 . . . Indirectly . | . . . . . Trap Hack Attempts . | . . . . . Triggered . | . . . . . Disarmed . | . . . . . Reprogrammed . | . . . . . Reused . | . . . . . Traps Extracted . | . . . . . Installed . | . . . . . Triggered . | . . . . . Machines | -11 -10 -10 -9 -8 ---------- Run | Scr Mat Min Mat Mat Machines Disabled 6 | . . 1 1 4 Max in Single Turn 1 | . . 1 1 1 Machines Sabotaged . | . . . . . Garrisons Compromised . | . . . . . Overloaded Fab Kills . | . . . . . Hacking | -11 -10 -10 -9 -8 --------- Run | Scr Mat Min Mat Mat Machines Accessed 23 | . 7 . 8 8 Terminals 18 | . 5 . 8 5 Fabricators . | . . . . . Repair Stations 1 | . . . . 1 Recycling Units 3 | . 2 . . 1 Scanalyzers 1 | . . . . 1 Garrison Access . | . . . . . Total Hacks 88 | . 35 . 28 25 Successful 55 | . 22 . 17 16 Failed 32 | . 13 . 10 9 Catastrophic 2 | . . . 1 1 Database Lockouts 1 | . . . 1 . Manual 55 | . 25 . 16 14 Terminals 69 | . 24 . 28 17 Fabricators . | . . . . . Repair Stations 2 | . . . . 2 Recycling Units 14 | . 11 . . 3 Scanalyzers 3 | . . . . 3 Garrison Access . | . . . . . Terminal Hacks 27 | . 9 . 12 6 Robot Analysis 8 | . 3 . 3 2 Prototype ID Bank 3 | . 1 . 1 1 Branch Access Points 1 | . . . 1 . Emergency Access Points 1 | . 1 . . . Terminal Index 2 | . 1 . 1 . Alert Level 2 | . . . 1 1 Unreport Threat 3 | . . . 2 1 Locate Traps 2 | . 1 . . 1 Security Status 1 | . . . 1 . Hauler Manifests 3 | . 1 . 2 . Zone Layout 1 | . 1 . . . Fabricator Hacks . | . . . . . Repair Station Hacks 2 | . . . . 2 Scan Component 1 | . . . . 1 Repair 1 | . . . . 1 Recycling Unit Hacks 2 | . 2 . . . Retrieve Components 2 | . 2 . . . Scanalyzer 3 | . . . . 3 Insert Component 1 | . . . . 1 Analyze 2 | . . . . 2 Garrison Access Hacks . | . . . . . Unauthorized Hacks 21 | . 11 . 5 5 Terminals 13 | . 4 . 5 4 Assimilate 1 | . . . 1 . Botnet 9 | . 3 . 3 3 Disrupt 1 | . . . . 1 Operators 2 | . 1 . 1 . Fabricators . | . . . . . Repair Stations . | . . . . . Recycling Units 8 | . 7 . . 1 Monitor 2 | . 2 . . . Reject 3 | . 2 . . 1 Recyclers 1 | . 1 . . . Mask 2 | . 2 . . . Scanalyzers . | . . . . . Garrison Access . | . . . . . Data Cores Recovered 1 | . . . 1 . Used 1 | . . . 1 . Hacking Detections 22 | . 6 . 8 8 Full Trace Events 6 | . 2 . 1 3 Feedback Events . | . . . . . Feedback Blocked . | . . . . . Robot Schematics Acquired . | . . . . . Robots Built . | . . . . . Authchips . | . . . . . Time . | . . . . . Total Robot Build Rating . | . . . . . Part Schematics Acquired . | . . . . . Parts Built . | . . . . . Authchips . | . . . . . Time . | . . . . . Total Part Build Rating . | . . . . . Parts Repaired 1 | . . . . 1 Time 26 | . . . . 26 Parts Recycled . | . . . . . Recycled Matter . | . . . . . Retrieved Matter . | . . . . . Retrieved Components 8 | . 8 . . . Parts Scanalyzed 1 | . . . . 1 Part Schematics Acquired . | . . . . . Parts Damaged . | . . . . . Bothacking | -11 -10 -10 -9 -8 ------------ Run | Scr Mat Min Mat Mat Used RIF Installer . | . . . . . Robots Hacked . | . . . . . Non-combat . | . . . . . Combat . | . . . . . Robot Hacks Applied . | . . . . . Relay Couplers Released . | . . . . . Fabnet Peak Effective % . | . . . . . Robots Rewired . | . . . . . Allies Hacked . | . . . . . Hacks Repelled . | . . . . . Allies | -11 -10 -10 -9 -8 -------- Run | Scr Mat Min Mat Mat Total Allies . | . . . . . Largest Group . | . . . . . Highest-Rated Group . | . . . . . Highest-Rated Ally . | . . . . . Total Orders . | . . . . . Ally Attacks . | . . . . . Total Damage . | . . . . . Kills . | . . . . . Allies Corrupted . | . . . . . Allies Melted . | . . . . . Intel | -11 -10 -10 -9 -8 ------- Run | Scr Mat Min Mat Mat Robot Analysis Total 8 | . 3 . 3 2 Derelict Logs Recovered 3 | . . 3 . . Drone Launches . | . . . . . Drone Recoveries . | . . . . . Exploration | -11 -10 -10 -9 -8 ------------- Run | Scr Mat Min Mat Mat Turns Passed 4544 | 106 1034 585 707 2112 Spaces Moved 2518 | 48 614 533 412 911 Core 2 | 2 . . . . Treads . | . . . . . Legs 1338 | 46 614 91 . 587 Wheels 1178 | . . 442 412 324 Hover . | . . . . . Flight . | . . . . . Fastest Speed 50 | 50 120 80 80 90 Average Speed 115 | 117 120 91 96 135 Slowest Speed 200 | 120 120 120 115 200 Overloaded Moves . | . . . . . Propulsion Burnouts . | . . . . . Robots Hopped . | . . . . . Cave-ins Triggered . | . . . . . Exploration Rate (%) 60 | 5 83 97 49 70 Regions Visited 4 Branch Regions 1 Pre-discovered Areas . | . . . . . Known Exits Taken . | . . . . . Unknown Exits Taken 4 | 1 1 1 1 . Scrap Searched 1 | . . 1 . . Spaces Dug 15 | . . 7 7 1 Terrain Destroyed 163 | . 9 7 75 72 Melee 1 | . . . . 1 Projectile 15 | . . . 7 8 AOE 147 | . 9 7 68 63 Terrain Rammed . | . . . . . Walls Destroyed . | . . . . . Machines Disabled . | . . . . . Actions | -11 -10 -10 -9 -8 --------- Run | Scr Mat Min Mat Mat Total 3610 | 70 813 585 579 1563 Wait 578 | . 127 9 58 384 Move 2514 | 47 613 532 411 911 Hop . | . . . . . Pick Up 60 | 4 10 5 5 36 Fast Attach 41 | 7 . 1 2 31 Attach 20 | . . . 5 15 Detach 6 | . . . . 6 Swap 65 | . 6 8 17 34 Drop 56 | . 7 8 4 37 Fire 255 | 12 50 22 77 94 Melee 9 | . . . . 9 Ram . | . . . . . Kick 6 | . . . . 6 Crush . | . . . . . Escape Stasis . | . . . . . Rewire . | . . . . . Trap . | . . . . . Miscellaneous . | . . . . . Route ------- -11/Scrapyard -10/Materials (discovered 5 exits: *Mat x3 / [*Min x2]) -10/Mines (discovered 2 exits: *Mat x2) -9/Materials (discovered 4 exits: *Mat x2 / Min x2) -8/Materials (discovered 3 exits: [*Fac x2] / *Sto) History --------- Turn | Location | Event 13 | -11/Scrapyard | Discovered new exit (range 16) 107 | -11/Scrapyard | Entered Materials 156 | -10/Materials | Discovered new exit (range 11) 174 | -10/Materials | Discovered new exit (range 20) 313 | -10/Materials | Build established: Mutant 902 | -10/Materials | Discovered new exit (range 15) 1080 | -10/Materials | Discovered new exit (range 16) 1094 | -10/Materials | Discovered new exit (range 8) 1141 | -10/Materials | Entered Mines 1167 | -10/Mines | Discovered new exit (range 12) 1236 | -10/Mines | Learned Materials interactive machine intel 1262 | -10/Mines | Received a Rocket Launcher from a helpful Derelict 1430 | -10/Mines | Learned Materials machine intel 1531 | -10/Mines | Learned 4 Materials zone layouts 1539 | -10/Mines | Joined a pair of Derelicts in attacking an 0b10 outpost 1582 | -10/Mines | Discovered new exit (range 10) 1726 | -10/Mines | Entered Materials 1726 | -9/Materials | Evolved 2 slots: Utility x2 1727 | -9/Materials | Identified exit to Mines 1728 | -9/Materials | Loaded intel: 62 machine locations 1729 | -9/Materials | Loaded intel: 18 interactive machine locations 1850 | -9/Materials | Build established: Scavenger-Mutant 2000 | -9/Materials | Central database locked down 2082 | -9/Materials | Discovered new exit (range 16) 2319 | -9/Materials | Destroyed 7 combat bots 2346 | -9/Materials | Core integrity fell below 50% 2415 | -9/Materials | Discovered new exit (range 8) 2433 | -9/Materials | Entered another Materials area 2433 | -8/Materials | Evolved 2 slots: Utility x1, Weapon x1 2842 | -8/Materials | Build established: Mutant 3157 | -8/Materials | Lost 9 parts (1p1n2u5w) 3206 | -8/Materials | Lost 5 parts (1n2u2w) 3371 | -8/Materials | Repaired Core Shielding 3409 | -8/Materials | Core integrity fell below 50% 3467 | -8/Materials | Lost 3 parts (1p1u1w) 3556 | -8/Materials | Discovered new exit (range 5) 3743 | -8/Materials | Discovered new exit (range 14) 3863 | -8/Materials | Core integrity fell below 20% 4052 | -8/Materials | Build established: Tank 4433 | -8/Materials | First assault squad dispatched 4467 | -8/Materials | Discovered new exit (range 12) 4498 | -8/Materials | Identified exit to Storage 4545 | -8/Materials | Destroyed by L-31 Rogue with Katana Last Messages --------------- 04524_ Connecting with Terminal... >>Trojan(Disrupt) Trojan loaded successfully. Testing... Disruption routine running. 04524_ ALERT: Suspicious activity at Terminal M003. Dispatching Investigation squad. 04525_ C-30 ARC bursts open, deploying its payload. 04525_ G-50 Soldier unfolds itself. 04525_ L-31 Rogue unfolds itself. 04525_ G-47 Trooper unfolds itself. 04525_ M-28 Smith unfolds itself. 04532_ Overheating: System interference. 04532_ Hvy. Laser temporarily disabled. 04532_ Kicked L-31 Rogue. 04535_ Overheating: Energy bleed (-40). 04535_ Hvy. Laser destroyed. 04536_ Kicked L-31 Rogue out of the way. 04536_ Hvy. Laser destroyed. 04538_ Kicked G-47 Trooper. 04543_ Hvy. Laser destroyed. Map ----- +----------------------------------------------------+ | | | | | | | | | | | | | | | | | | | | | | | | | | | | | | | | | | | | | ?????????????????????????????????????????????????? | | ?????????########????????????????????????????????? | | ?????????#!!!!//#????????????????????????????????? | | ?????????#!![! /#????????????????????????????????? | | ?????????# ########?????????????? ?????????? | | ?????##### ;## ########## ????????? | | ?????+ ^ g =! ????????? | | ?????## = ^ > g@g= ????????? | | ??????# ########## ##l####### ????????? | | ??????# #????????###### g #????????????????????? | | ?????## ##????????????# Tg #??????^?????????????? | | ###+## ###########??# #??????^?????????????? | | # #??#* #????????????????????? | | # #??# #????????????????????? | | ###### ##+##### #??# #????????????????????? | | ?????## ## ## #??# = #????????????????????? | | ??????# ## """## #??# #????????????????##### | | ??????# ## R"## #??# !#????????????????? | | ??????# ## """## #??######?????????????????? | | ?????## ##= ##! #?????????????????????????? | | ?????# ####+###%[#???????????????????????????# | | ?????+ ====[[#???????????????????????????# | | ?????# %*%%*#??????????################## | | ?????# ##+#####%*#?????????? | | ?????####????????# #??????????? | | ?????????????????# #?????????"????""" | | ??#########??????# #?????????T???""""" | | ??# #??????# #?????????"???""""" ##T## | | ### """ #??????# #?????????? """"" ####? | | # """ !#??????# #????????# "" #???? | | # """ #??????# #????????# #???? | | = # #??????# #????????# ####? | +----------------------------------------------------+ Best States ------------- Heat Dissipation 59 Coolant Potential 50 Energy Generation 14 Energy Capacity 275 Matter Stores 300 Matter Capacity 300 Sight Range 16 Robot Scan Range 15 Terrain Scan Range 16 Terrain Scan Density 10 Armor Coverage 600 Resistance: KI 30 Core Shielding 20 Propulsion Shielding 66 Utility Shielding 33 Evasion (%) 55 Targeting Accuracy 6 Armor Integrity Analysis 30 Recoil Reduction 4 Item Schematics ----------------- None Robot Schematics ------------------ None Fabricated ------------ Nothing Alien Tech Used ----------------- None Achievements -------------- None Challenges ------------ None Game ------ Seed PortableMetafiberClaymores Manual? 0 Play Time 01:14:42 Cumulative 991.3 hours Start 2022.12.09 @ 14:05:50 End 2022.12.09 @ 20:00:04 Sessions 3 Manual Loads 0 Difficulty Rogue Special Mode None Game No. 397 Rogue 397 Adventurer 0 Explorer 0 Win Type - Total 13 Types 12/0/1/0/0/0/0/0/0 Lore% 72 Gallery% 83 Achievement% 70 Wizard Run 0 Options --------- ASCII 0 Keyboard 1 Movement Numpad Keybinds 0 Fullscreen 2 Font 18/SmallcapsGlow Map View 112x50 Tactical HUD 1 Map Filters NONE Filters NONE Steam 1 RUN: a164714d-3222-42b3-8161-c2f23d431a03